fUSD/lending_fUSD_20240212
["ID","MTS","AMOUNT","RATE_DAILY","PERIOD"]
[313833707,1707748276379,-500.0,0.00024406,2]
[313833708,1707748276391,-500.0,0.00024406,2]
[313833709,1707748276401,-1926.94,0.00024406,2]
[313833710,1707748276411,-500.0,0.00024406,2]
[313833711,1707748276422,-1829.63,0.00024406,2]
[313833712,1707748276432,-500.0,0.00024406,2]
[313833713,1707748276442,-504.23,0.00024406,2]
[313833714,1707748276453,-2230.81,0.00024406,2]
[313833715,1707748276463,-500.0,0.00024406,2]
[313833716,1707748276474,-500.0,0.00024406,2]
[313833717,1707748276485,-5597.11,0.00024406,2]
[313833718,1707748276496,-2899.6,0.00024406,2]
[313833719,1707748276506,-500.0,0.00024406,2]
[313833720,1707748276516,-828.89,0.00024406,2]
[313833721,1707748276527,-1000.0,0.00024436,2]
[313833722,1707748276537,-500.0,0.00024457,2]
[313833723,1707748276548,-2611.65,0.00024488,2]
[313833724,1707748276558,-1871.51,0.00024488,2]
[313833725,1707748276568,-15228.44,0.00024488,2]
[313833726,1707748276580,-500.0,0.00024488,2]
[313833727,1707748276590,-1123.04,0.00024488,2]
[313833728,1707748276601,-669.38,0.00024488,2]
[313833729,1707748276612,-500.0,0.00024488,2]
[313833730,1707748276622,-7454.03,0.00024488,2]
[313833731,1707748276633,-656.99,0.00024488,2]
[313833732,1707748276643,-1132.61,0.00024488,2]
[313833733,1707748276653,-500.0,0.00024488,2]
[313833734,1707748276663,-607.87,0.00024488,2]
[313833735,1707748276674,-2975.67,0.00024488,2]
[313833736,1707748276684,-1380.57,0.00024488,2]
[313833737,1707748276693,-1785.04,0.00024488,2]
[313833738,1707748276703,-500.0,0.00024488,2]
[313833739,1707748276714,-1602.71,0.00024488,2]
[313833740,1707748276723,-1140.13,0.00024488,2]
[313833741,1707748276734,-2106.31,0.00024488,2]
[313833742,1707748276744,-1276.82,0.00024488,2]
[313833743,1707748276754,-11488.97,0.00024488,2]
[313833744,1707748276765,-779.37,0.00024488,2]
[313833745,1707748276775,-522.1,0.00024488,2]
[313833746,1707748276785,-500.0,0.00024488,2]
[313833747,1707748276795,-862.25,0.00024488,2]
[313833748,1707748276805,-954.69,0.00024488,2]
[313833749,1707748276815,-4038.41,0.00024488,2]
[313833750,1707748276824,-2125.47,0.00024488,2]
[313833751,1707748276834,-3098.18,0.00024488,2]
[313833752,1707748276844,-4848.26,0.00024488,2]
[313833753,1707748276853,-1169.49,0.00024488,2]
[313833754,1707748276863,-2525.28,0.00024488,2]
[313833755,1707748276873,-500.0,0.00024491,2]
[313833756,1707748276882,-303.23650053,0.00024491,2]
[313833757,1707748276892,-500.0,0.00024491,2]
[313833758,1707748276902,-221.84243841,0.00024491,2]
[313833759,1707748276912,-500.0,0.00024491,2]
[313833760,1707748276923,-500.0,0.00024491,2]
[313833761,1707748276933,-500.0,0.00024491,2]
[313833762,1707748276942,-432.1766265,0.00024491,2]
[313833763,1707748276952,-660.1,0.00024491,2]
[313833764,1707748276962,-676.33,0.00024491,2]
[313833765,1707748276972,-500.0,0.00024491,2]
[313833766,1707748276982,-543.75632844,0.00024491,2]
[313833767,1707748276991,-500.0,0.00024491,2]
[313833768,1707748277001,-500.0,0.00024491,2]
[313833769,1707748277012,-500.0,0.00024491,2]
[313833770,1707748277022,-500.0,0.00024491,2]
[313833771,1707748277032,-500.0,0.00024491,2]
[313833772,1707748277042,-500.0,0.00024491,7]
[313833773,1707748277052,-500.0,0.00024491,2]
[313833774,1707748277061,-500.0,0.00024491,2]
[313833775,1707748277071,-500.0,0.00024491,2]
[313833776,1707748277081,-526.84,0.00024491,2]
[313833777,1707748277091,-500.0,0.00024491,2]
[313833778,1707748277100,-500.0,0.00024491,2]
[313833779,1707748277110,-529.5,0.00024491,2]
[313833780,1707748277120,-500.0,0.00024491,2]
[313833781,1707748277129,-652.95,0.00024491,2]
[313833782,1707748277139,-651.67,0.00024491,2]
[313833783,1707748277149,-567.71,0.00024491,2]
[313833784,1707748277158,-500.0,0.00024491,2]
[313833785,1707748277168,-784.11,0.00024491,2]
[313833786,1707748277178,-524.91,0.00024491,2]
[313833787,1707748277188,-550.93860534,0.00024491,2]
[313833788,1707748277197,-500.0,0.00024491,2]
[313833789,1707748277207,-500.0,0.00024491,2]
[313833790,1707748277217,-872.77,0.00024491,2]
[313833791,1707748277227,-639.25,0.00024491,2]
[313833792,1707748277238,-500.0,0.00024491,2]
[313833793,1707748277248,-380.73820016,0.00024491,2]
[313833794,1707748277259,-500.0,0.00024491,2]
[313833795,1707748277269,-500.0,0.00024491,2]
[313833796,1707748277283,-500.0,0.00024491,2]
[313833797,1707748277293,-1296.69,0.00024491,2]
[313833798,1707748277305,-500.0,0.00024491,2]
[313833799,1707748277315,-500.0,0.00024491,2]
[313833800,1707748277325,-597.9637292,0.00024491,2]
[313833801,1707748277335,-500.0,0.00024491,2]
[313833802,1707748277346,-500.0,0.00024491,2]
[313833803,1707748277356,-500.0,0.00024491,2]
[313833804,1707748277366,-517.62,0.00024491,2]
[313833805,1707748277377,-4333.7,0.00024491,2]
[313833806,1707748277388,-1895.9,0.00024491,2]
[313833807,1707748277399,-923.15,0.00024491,2]
[313833808,1707748277409,-1121.1,0.00024491,2]
[313833809,1707748277419,-500.0,0.00024491,2]
[313833810,1707748277429,-500.0,0.00024491,2]
[313833811,1707748277439,-500.0,0.00024491,2]
[313833812,1707748277450,-4100.88,0.00024491,2]
[313833813,1707748277460,-791.85,0.00024491,2]
[313833814,1707748277471,-500.0,0.00024491,2]
[313833815,1707748277481,-1394.8,0.00024491,2]
[313833816,1707748277491,-575.24,0.00024491,2]
[313833817,1707748277502,-715.53,0.00024491,2]
[313833818,1707748277514,-637.77,0.00024491,2]
[313833819,1707748277801,-1763.67,0.00024491,2]
[313833820,1707748277813,-2032.84,0.00024491,2]
[313833821,1707748277822,-500.0,0.00024491,2]
[313833822,1707748277831,-686.28,0.00024491,2]
[313833823,1707748277840,-689.11,0.00024491,2]
[313833824,1707748277850,-4391.98,0.00024491,2]
[313833825,1707748277859,-1500.18,0.00024491,2]
[313833826,1707748277868,-637.5,0.00024491,2]
[313833827,1707748277877,-500.0,0.00024491,2]
[313833828,1707748277887,-1040.77,0.00024491,2]
[313833829,1707748277896,-500.0,0.00024491,2]
[313833830,1707748277905,-1065.07,0.00024491,2]
[313833831,1707748277914,-500.0,0.00024491,2]
[313833832,1707748277924,-596.16,0.00024491,2]
[313833833,1707748277934,-500.0,0.00024491,2]
[313833834,1707748277944,-706.62,0.00024491,2]
[313833835,1707748277954,-500.0,0.00024491,2]
[313833836,1707748277962,-4062.09,0.00024491,2]
[313833837,1707748277972,-1058.56,0.00024491,2]
[313833838,1707748277981,-217.13669009,0.00024491,2]
[313833839,1707748277990,-721.91,0.00024491,2]
[313833840,1707748277999,-3863.5,0.00024491,2]
[313833841,1707748278010,-500.0,0.00024491,2]
[313833842,1707748278019,-559.05,0.00024491,2]
[313833843,1707748278028,-500.0,0.00024491,2]
[313833844,1707748278037,-500.0,0.00024491,2]
[313833845,1707748278046,-500.0,0.00024491,2]
[313833846,1707748278056,-5323.17,0.00024491,2]
[313833847,1707748278065,-500.0,0.00024491,2]
[313833848,1707748278074,-500.0,0.00024491,2]
[313833849,1707748278084,-1797.81,0.00024491,2]
[313833850,1707748278093,-500.0,0.00024491,2]
[313833851,1707748278102,-500.0,0.00024491,2]
[313833852,1707748278111,-1838.78,0.00024491,2]
[313833853,1707748278121,-683.21,0.00024491,2]
[313833854,1707748278129,-500.0,0.00024491,2]
[313833855,1707748278139,-508.34,0.00024491,2]
[313833856,1707748278148,-500.0,0.00024491,2]
[313833857,1707748278158,-945.99,0.00024491,2]
[313833858,1707748278167,-500.0,0.00024491,2]
[313833859,1707748278177,-874.97,0.00024491,2]
[313833860,1707748278186,-500.0,0.00024491,2]
[313833861,1707748278196,-354.76343863,0.00024491,2]
[313833862,1707748278206,-2272.98,0.00024491,2]
[313833863,1707748278216,-500.0,0.00024491,2]
[313833864,1707748278225,-500.0,0.00024491,2]
[313833865,1707748278235,-1286.15,0.00024491,2]
[313833866,1707748278244,-500.0,0.00024491,2]
[313833867,1707748278258,-502.26,0.00024491,2]
[313833868,1707748278269,-1140.72,0.00024491,2]
[313833869,1707748278279,-500.0,0.00024492,2]
[313833870,1707748278289,-639.88,0.00024492,2]
[313833871,1707748278301,-194.24397862,0.00024492,2]
[313833872,1707748278311,-478.13116736,0.00024492,2]
[313833873,1707748278320,-500.0,0.00024492,2]
[313833874,1707748278330,-270.51737807,0.00024492,2]
[313833875,1707748278339,-500.0,0.00024492,2]
[313833876,1707748278349,-500.0,0.00024492,2]
[313833877,1707748278359,-305.46,0.00024492,2]
[313833878,1707748278368,-500.0,0.00024492,2]
[313833879,1707748278378,-353.59947906,0.00024492,2]
[313833880,1707748278388,-335.56854147,0.00024492,2]
[313833881,1707748278398,-524.07,0.00024492,2]
[313833882,1707748278408,-500.0,0.00024492,2]
[313833883,1707748278417,-500.0,0.00024492,2]
[313833884,1707748278427,-500.0,0.00024492,2]
[313833885,1707748278436,-500.0,0.00024492,2]
[313833886,1707748278447,-464.20792103,0.00024492,2]
[313833887,1707748278456,-500.0,0.00024492,2]
[313833888,1707748278466,-500.0,0.00024492,2]
[313833889,1707748278477,-859.17,0.00024492,2]
[313833890,1707748278487,-8642.09,0.00024492,2]
[313833891,1707748278497,-500.0,0.00024492,2]
[313833892,1707748278507,-500.0,0.00024492,2]
[313833893,1707748278517,-500.0,0.00024492,2]
[313833894,1707748278526,-907.74,0.00024492,2]
[313833895,1707748278536,-659.8,0.00024492,2]
[313833896,1707748278546,-6204.93,0.00024492,2]
[313833897,1707748278556,-500.0,0.00024492,2]
[313833898,1707748278567,-500.0,0.00024492,2]
[313833899,1707748278577,-500.0,0.00024492,2]
[313833900,1707748278587,-1134.83,0.00024492,2]
[313833901,1707748278597,-1147.71,0.00024492,2]
[313833902,1707748278607,-500.0,0.00024492,2]
[313833903,1707748278617,-500.0,0.00024492,2]
[313833904,1707748278628,-2142.38,0.00024492,2]
[313833905,1707748278639,-1578.9,0.00024492,2]
[313833906,1707748278648,-261.42,0.00024492,2]
[313833907,1707748278658,-500.0,0.00024492,2]
[313833908,1707748278669,-500.0,0.00024492,2]
[313833909,1707748278678,-628.61,0.00024492,2]
[313833910,1707748278688,-1527.65,0.00024492,2]
[313833911,1707748278698,-1715.49,0.00024492,2]
[313833912,1707748278708,-500.0,0.00024492,2]
[313833913,1707748278719,-1537.51,0.00024492,2]
[313833914,1707748278729,-500.0,0.00024492,2]
[313833915,1707748278739,-500.0,0.00024492,2]
[313833916,1707748278749,-1757.6,0.00024492,2]
[313833917,1707748278759,-2089.11,0.00024492,2]
[313833918,1707748278770,-1017.68,0.00024492,2]
[313833919,1707748278780,-500.0,0.00024492,2]
[313833920,1707748278791,-1161.37,0.00024492,2]
[313833921,1707748278800,-590.03,0.00024492,2]
[313833922,1707748278810,-10286.15,0.00024492,2]
[313833923,1707748278819,-500.0,0.00024492,2]
[313833924,1707748278829,-500.0,0.00024492,2]
[313833925,1707748278838,-285.78,0.00024492,2]
[313833926,1707748278848,-1897.21,0.00024492,2]
[313833927,1707748278858,-500.0,0.00024492,2]
[313833928,1707748278867,-935.54,0.00024492,2]
[313833929,1707748278877,-500.0,0.00024492,2]
[313833930,1707748278886,-7934.79,0.00024492,2]
[313833931,1707748278896,-500.0,0.00024492,2]
[313833932,1707748278905,-500.0,0.00024492,2]
[313833933,1707748278921,-500.0,0.00024492,2]
[313833934,1707748278931,-500.0,0.00024492,2]
[313833935,1707748278940,-500.0,0.00024492,2]
[313833936,1707748278950,-500.0,0.00024492,2]
[313833937,1707748278960,-2190.55,0.00024492,2]
[313833938,1707748278970,-500.0,0.00024492,2]
[313833939,1707748278980,-1376.25,0.00024492,2]
[313833940,1707748278989,-500.0,0.00024492,2]
[313833941,1707748278999,-6405.5,0.00024492,2]
[313833942,1707748279009,-573.28878121,0.00024492,2]
[313833943,1707748279019,-500.0,0.00024492,2]
[313833944,1707748279028,-500.0,0.00024492,2]
[313833945,1707748279038,-4161.56,0.00024492,2]
[313833946,1707748279047,-692.19,0.00024492,2]
[313833947,1707748279057,-338.05,0.00024492,2]
[313833948,1707748279066,-562.21,0.00024492,2]
[313833949,1707748279076,-5812.6876084,0.00024501,2]
[313833950,1707748279085,-150.0,0.00024572,2]
[313833951,1707748279094,-500.0,0.00024573,2]
[313833952,1707748279104,-500.0,0.00024573,2]
[313833953,1707748279113,-500.0,0.00024573,2]
[313833954,1707748279122,-500.0,0.00024573,2]
[313833955,1707748279132,-1262.54,0.00024573,2]
[313833956,1707748279141,-1207.47,0.00024573,2]
[313833957,1707748279151,-500.0,0.00024573,2]
[313833958,1707748279160,-500.0,0.00024573,2]
[313833959,1707748279170,-500.0,0.00024573,2]
[313833960,1707748279180,-500.0,0.00024573,2]
[313833961,1707748279189,-581.28,0.00024573,2]
[313833962,1707748279199,-500.0,0.00024573,2]
[313833963,1707748279209,-500.0,0.00024573,2]
[313833964,1707748279218,-500.0,0.00024573,2]
[313833965,1707748279228,-500.0,0.00024573,2]
[313833966,1707748279237,-500.0,0.00024573,2]
[313833967,1707748279247,-500.0,0.00024573,2]
[313833968,1707748279256,-500.0,0.00024573,2]
[313833969,1707748279266,-500.0,0.00024573,2]
[313833970,1707748279275,-500.0,0.00024573,2]
[313833971,1707748279285,-500.0,0.00024573,2]
[313833972,1707748279294,-500.0,0.00024573,2]
[313833973,1707748279308,-500.0,0.00024573,2]
[313833974,1707748279317,-500.0,0.00024573,2]
[313833975,1707748279326,-662.95,0.00024573,2]
[313833976,1707748279335,-500.0,0.00024573,2]
[313833977,1707748279345,-500.0,0.00024573,2]
[313833978,1707748279355,-500.0,0.00024573,2]
[313833979,1707748279364,-500.0,0.00024573,2]
[313833980,1707748279374,-500.0,0.00024573,2]
[313833981,1707748279385,-500.0,0.00024573,2]
[313833982,1707748279395,-500.0,0.00024573,2]
[313833983,1707748279405,-577.32820113,0.00024573,2]
[313833984,1707748279415,-500.0,0.00024573,2]
[313833985,1707748279424,-508.343173,0.00024573,2]
[313833986,1707748279434,-500.0,0.00024573,2]
[313833987,1707748279443,-500.0,0.00024573,2]
[313833988,1707748279453,-785.31,0.00024573,2]
[313833989,1707748279463,-500.0,0.00024573,2]
[313833990,1707748279473,-500.0,0.00024573,2]
[313833991,1707748279482,-1057.6,0.00024573,2]
[313833992,1707748279492,-199.16089323,0.00024573,2]
[313833993,1707748279505,-500.0,0.00024573,2]
[313833994,1707748279515,-623.82,0.00024573,2]
[313833995,1707748279524,-500.0,0.00024573,2]
[313833996,1707748279534,-500.0,0.00024573,2]
[313833997,1707748279544,-500.0,0.00024573,2]
[313833998,1707748279554,-681.61,0.00024573,2]
[313833999,1707748279564,-500.0,0.00024573,2]
[313834000,1707748279574,-319.96216683,0.00024573,2]
[313834001,1707748279584,-500.0,0.00024573,2]
[313834002,1707748279594,-1004.0,0.00024573,2]
[313834003,1707748279604,-500.0,0.00024573,2]
[313834004,1707748279614,-500.0,0.00024573,2]
[313834005,1707748279624,-500.0,0.00024573,2]
[313834006,1707748279634,-500.0,0.00024573,2]
[313834007,1707748279646,-500.0,0.00024573,2]
[313834008,1707748279655,-500.0,0.0002458,2]
[313834009,1707748279664,-1142.62929271,0.00024597,2]
[313834010,1707748279674,-1082.61346614,0.00024597,2]
[313834011,1707748279683,-500.0,0.0002464,2]
[313834012,1707748279693,-250.0,0.00024658,2]
[313834013,1707748279702,-507.82599217,0.00024664,2]
[313834014,1707748279712,-500.0,0.00024664,2]
[313834015,1707748279721,-500.0,0.00024664,2]
[313834016,1707748279730,-500.0,0.00024664,2]
[313834017,1707748279740,-1366.1,0.00024664,2]
[313834018,1707748279750,-500.0,0.00024664,2]
[313834019,1707748279760,-500.0,0.00024664,2]
[313834020,1707748279769,-150.0,0.00024679,2]
[313834021,1707748279778,-2110.37,0.0002468,2]
[313834022,1707748279788,-500.0,0.0002468,2]
[313834023,1707748279797,-6142.49,0.0002468,2]
[313834024,1707748279807,-500.0,0.0002468,2]
[313834025,1707748279817,-676.37,0.0002468,2]
[313834026,1707748279826,-1791.31,0.0002468,2]
[313834027,1707748279836,-564.38,0.0002468,2]
[313834028,1707748279845,-2125.32,0.0002468,2]
[313834029,1707748279855,-500.0,0.0002468,2]
[313834030,1707748279864,-746.12,0.0002468,2]
[313834031,1707748279874,-310.36766031,0.0002468,2]
[313834032,1707748279883,-6506.4,0.0002468,2]
[313834033,1707748279892,-746.22,0.0002468,2]
[313834034,1707748279902,-500.0,0.0002468,2]
[313834035,1707748279911,-500.0,0.0002468,2]
[313834036,1707748279920,-500.0,0.0002468,2]
[313834037,1707748279930,-500.0,0.0002468,2]
[313834038,1707748279939,-1926.94,0.0002468,2]
[313834039,1707748279950,-500.0,0.0002468,2]
[313834040,1707748279960,-1829.63,0.0002468,2]
[313834041,1707748279970,-500.0,0.0002468,2]
[313834042,1707748279979,-504.23,0.0002468,2]
[313834043,1707748279989,-2230.81,0.0002468,2]
[313834044,1707748279999,-500.0,0.0002468,2]
[313834045,1707748280009,-500.0,0.0002468,2]
[313834046,1707748280019,-5597.11,0.0002468,2]
[313834047,1707748280029,-2899.6,0.0002468,2]
[313834048,1707748280039,-500.0,0.0002468,2]
[313834049,1707748280049,-828.89,0.0002468,2]
[313834050,1707748280059,-2611.65,0.00024762,2]
[313834051,1707748280069,-1871.51,0.00024762,2]
[313834052,1707748280078,-15228.44,0.00024762,2]
[313834053,1707748280088,-500.0,0.00024762,2]
[313834054,1707748280098,-1123.04,0.00024762,2]
[313834055,1707748280177,-669.38,0.00024762,2]
[313834056,1707748280186,-500.0,0.00024762,2]
[313834057,1707748280196,-7454.03,0.00024762,2]
[313834058,1707748280206,-656.99,0.00024762,2]
[313834059,1707748280215,-1132.61,0.00024762,2]
[313834060,1707748280224,-500.0,0.00024762,2]
[313834061,1707748280233,-607.87,0.00024762,2]
[313834062,1707748280242,-2975.67,0.00024762,2]
[313834063,1707748280251,-1380.57,0.00024762,2]
[313834064,1707748280261,-1785.04,0.00024762,2]
[313834065,1707748280271,-500.0,0.00024762,2]
[313834066,1707748280280,-1602.71,0.00024762,2]
[313834067,1707748280289,-1140.13,0.00024762,2]
[313834068,1707748280299,-2106.31,0.00024762,2]
[313834069,1707748280313,-1276.82,0.00024762,2]
[313834070,1707748280323,-11488.97,0.00024762,2]
[313834071,1707748280332,-779.37,0.00024762,2]
[313834072,1707748280341,-522.1,0.00024762,2]
[313834073,1707748280351,-500.0,0.00024762,2]
[313834074,1707748280361,-862.25,0.00024762,2]
[313834075,1707748280370,-954.69,0.00024762,2]
[313834076,1707748280379,-4038.41,0.00024762,2]
[313834077,1707748280389,-2125.47,0.00024762,2]
[313834078,1707748280399,-3098.18,0.00024762,2]
[313834079,1707748280408,-4848.26,0.00024762,2]
[313834080,1707748280417,-1169.49,0.00024762,2]
[313834081,1707748280427,-2525.28,0.00024762,2]
[313834082,1707748280436,-500.0,0.00024765,2]
[313834083,1707748280445,-500.0,0.00024765,2]
[313834084,1707748280454,-500.0,0.00024765,2]
[313834085,1707748280464,-500.0,0.00024765,2]
[313834086,1707748280473,-500.0,0.00024765,2]
[313834087,1707748280482,-660.1,0.00024765,2]
[313834088,1707748280491,-676.33,0.00024765,2]
[313834089,1707748280500,-500.0,0.00024765,2]
[313834090,1707748280511,-500.0,0.00024765,2]
[313834091,1707748280520,-500.0,0.00024765,2]
[313834092,1707748280529,-500.0,0.00024765,2]
[313834093,1707748280538,-500.0,0.00024765,2]
[313834094,1707748280547,-500.0,0.00024765,2]
[313834095,1707748280557,-500.0,0.00024765,7]
[313834096,1707748280566,-500.0,0.00024765,2]
[313834097,1707748280575,-169.32939696,0.00024765,2]
[313834098,1707748280584,-500.0,0.00024765,2]
[313834099,1707748280593,-526.84,0.00024765,2]
[313834100,1707748280603,-500.0,0.00024765,2]
[313834101,1707748280612,-500.0,0.00024765,2]
[313834102,1707748280621,-529.5,0.00024765,2]
[313834103,1707748280630,-500.0,0.00024765,2]
[313834104,1707748280640,-652.95,0.00024765,2]
[313834105,1707748280649,-651.67,0.00024765,2]
[313834106,1707748280659,-567.71,0.00024765,2]
[313834107,1707748280669,-500.0,0.00024765,2]
[313834108,1707748280678,-784.11,0.00024765,2]
[313834109,1707748280687,-524.91,0.00024765,2]
[313834110,1707748280696,-500.0,0.00024765,2]
[313834111,1707748280705,-500.0,0.00024765,2]
[313834112,1707748280714,-872.77,0.00024765,2]
[313834113,1707748280724,-639.25,0.00024765,2]
[313834114,1707748280733,-500.0,0.00024765,2]
[313834115,1707748280742,-500.0,0.00024765,2]
[313834116,1707748280751,-500.0,0.00024765,2]
[313834117,1707748280761,-500.0,0.00024765,2]
[313834118,1707748280770,-1296.69,0.00024765,2]
[313834119,1707748280779,-500.0,0.00024765,2]
[313834120,1707748280788,-159.25,0.00024765,2]
[313834121,1707748280797,-339.54,0.00024765,2]
[313834122,1707748280806,-500.0,0.00024765,2]
[313834123,1707748280815,-517.62,0.00024765,2]
[313834124,1707748280825,-4333.7,0.00024765,2]
[313834125,1707748280834,-1895.9,0.00024765,2]
[313834126,1707748280844,-923.15,0.00024765,2]
[313834127,1707748280855,-1121.1,0.00024765,2]
[313834128,1707748280864,-500.0,0.00024765,2]
[313834129,1707748280874,-500.0,0.00024765,2]
[313834130,1707748280884,-500.0,0.00024765,2]
[313834131,1707748280894,-4100.88,0.00024765,2]
[313834132,1707748280903,-791.85,0.00024765,2]
[313834133,1707748280913,-500.0,0.00024765,2]
[313834134,1707748280923,-1394.8,0.00024765,2]
[313834135,1707748280932,-575.24,0.00024765,2]
[313834136,1707748280941,-715.53,0.00024765,2]
[313834137,1707748280951,-637.77,0.00024765,2]
[313834138,1707748280960,-1763.67,0.00024765,2]
[313834139,1707748280969,-2032.84,0.00024765,2]
[313834140,1707748280978,-500.0,0.00024765,2]
[313834141,1707748280987,-686.28,0.00024765,2]
[313834142,1707748280996,-689.11,0.00024765,2]
[313834143,1707748281006,-1500.18,0.00024765,2]
[313834144,1707748281015,-4391.98,0.00024765,2]
[313834145,1707748281025,-637.5,0.00024765,2]
[313834146,1707748281034,-500.0,0.00024765,2]
[313834147,1707748281044,-1040.77,0.00024765,2]
[313834148,1707748281053,-500.0,0.00024765,2]
[313834149,1707748281063,-1065.07,0.00024765,2]
[313834150,1707748281072,-500.0,0.00024765,2]
[313834151,1707748281081,-596.16,0.00024765,2]
[313834152,1707748281090,-500.0,0.00024765,2]
[313834153,1707748281100,-706.62,0.00024765,2]
[313834154,1707748281110,-500.0,0.00024765,2]
[313834155,1707748281119,-4062.09,0.00024765,2]
[313834156,1707748281128,-1058.56,0.00024765,2]
[313834157,1707748281138,-721.91,0.00024765,2]
[313834158,1707748281148,-3863.5,0.00024765,2]
[313834159,1707748281157,-559.05,0.00024765,2]
[313834160,1707748281167,-500.0,0.00024765,2]
[313834161,1707748281177,-500.0,0.00024765,2]
[313834162,1707748281186,-500.0,0.00024765,2]
[313834163,1707748281196,-500.0,0.00024765,2]
[313834164,1707748281206,-5323.17,0.00024765,2]
[313834165,1707748281215,-500.0,0.00024765,2]
[313834166,1707748281224,-500.0,0.00024765,2]
[313834167,1707748281233,-1797.81,0.00024765,2]
[313834168,1707748281242,-500.0,0.00024765,2]
[313834169,1707748281252,-500.0,0.00024765,2]
[313834170,1707748281262,-1838.78,0.00024765,2]
[313834171,1707748281272,-683.21,0.00024765,2]
[313834172,1707748281281,-500.0,0.00024765,2]
[313834173,1707748281290,-508.34,0.00024765,2]
[313834174,1707748281301,-500.0,0.00024765,2]
[313834175,1707748281313,-945.99,0.00024765,2]
[313834176,1707748281323,-500.0,0.00024765,2]
[313834177,1707748281332,-874.97,0.00024765,2]
[313834178,1707748281341,-500.0,0.00024765,2]
[313834179,1707748281353,-2272.98,0.00024765,2]
[313834180,1707748281362,-378.60839037,0.00024765,2]
[313834181,1707748281372,-152.82,0.00024765,2]
[313834182,1707748281383,-1286.15,0.00024765,2]
[313834183,1707748281393,-500.0,0.00024765,2]
[313834184,1707748281403,-502.26,0.00024765,2]
[313834185,1707748281413,-1140.72,0.00024765,2]
[313834186,1707748281423,-224.65,0.00024766,2]
[313834187,1707748281432,-639.88,0.00024766,2]
[313834188,1707748281443,-500.0,0.00024766,2]
[313834189,1707748281453,-500.0,0.00024766,2]
[313834190,1707748281463,-207.74,0.00024766,2]
[313834191,1707748281473,-584.21678671,0.00024766,2]
[313834192,1707748281484,-524.07,0.00024766,2]
[313834193,1707748281494,-500.0,0.00024766,2]
[313834194,1707748281505,-500.0,0.00024766,2]
[313834195,1707748281516,-500.0,0.00024766,2]
[313834196,1707748281526,-368.47460135,0.00024766,2]
[313834197,1707748281536,-500.0,0.00024766,2]
[313834198,1707748281547,-500.0,0.00024766,2]
[313834199,1707748281556,-859.17,0.00024766,2]
[313834200,1707748281566,-8642.09,0.00024766,2]
[313834201,1707748281576,-223.0038755,0.00024766,2]
[313834202,1707748281587,-500.0,0.00024766,2]
[313834203,1707748281597,-500.0,0.00024766,2]
[313834204,1707748281607,-907.74,0.00024766,2]
[313834205,1707748281617,-659.8,0.00024766,2]
[313834206,1707748281627,-6204.93,0.00024766,2]